bitfinex-derivatives/quotes_ETHF0:USTF0_20240915
["timestamp","ask_amount","ask_price","bid_price","bid_amount"]
[1726364404990,1.8568,2426.8,2426.6,3.2078]
[1726364405593,1.8568,2426.8,2426.6,3.53736]
[1726364406491,1.8568,2426.8,2426.6,0.32956]
[1726364412996,1.8568,2426.8,2426.5,5.42193446]
[1726364413197,1.48,2426.6,2426.5,5.42193446]
[1726364415400,1.48,2426.6,2426.5,5.09237446]
[1726364415604,1.48,2426.6,2426.5,5.281397]
[1726364415904,1.48,2426.6,2426.5,3.6053]
[1726364416101,1.8629,2426.6,2426.5,3.6053]
[1726364417811,1.8629,2426.6,2426.5,0.3975]
[1726364424711,1.8629,2426.6,2426.5,0.72707]
[1726364428114,1.8629,2426.6,2426.5,1.80464446]
[1726364429211,1.8629,2426.6,2426.5,3.8709295]
[1726364429212,1.48,2426.6,2426.5,3.8709295]
[1726364429411,1.48,2426.6,2426.5,3.87090048]
[1726364430210,1.48,2426.6,2426.5,3.27285132]
[1726364430417,1.48,2426.6,2426.5,3.87088966]
[1726364431817,1.48,2426.6,2426.5,3.86975027]
[1726364432017,1.48,2426.6,2426.5,2.7933152]
[1726364432311,3.2078,2427.0,2426.5,2.7933152]
[1726364432312,1.48,2427.0,2426.9,0.32951]
[1726364432513,1.48,2427.0,2426.8,1.40540352]
[1726364432705,1.2068,2427.2,2426.9,0.7905]
[1726364435115,1.48,2427.0,2426.9,1.12002]
[1726364435308,1.2068,2427.2,2426.9,4.32782]
[1726364435515,1.48,2427.0,2426.9,4.32782]
[1726364440720,0.32946,2427.4,2426.9,3.9983]
[1726364441025,1.48,2427.3,2427.0,0.3824]
[1726364441224,0.7939,2427.4,2427.0,0.3824]
[1726364441225,1.48,2427.1,2427.0,0.3824]
[1726364441819,1.48,2427.1,2426.9,5.07417352]
[1726364442018,1.48,2427.1,2426.9,4.32781]
[1726364442019,0.3996,2427.0,2426.9,4.32781]
[1726364442224,1.48,2427.1,2427.0,0.7174]
[1726364456536,0.7949,2427.3,2427.0,0.3879]
[1726364456734,1.48,2427.1,2427.0,0.3879]
[1726364457628,1.48,2427.1,2427.0,0.7174]
[1726364465346,1.48,2427.1,2426.9,4.32781]
[1726364465541,0.7949,2427.3,2426.7,1.48027352]
[1726364465542,2.2883,2427.0,2426.7,1.48027352]
[1726364465742,1.80953,2426.8,2426.7,1.07587352]
[1726364466049,0.32955,2426.7,2426.6,3.2078]
[1726364466242,0.74155,2426.7,2426.6,3.2078]
[1726364466852,4.86235,2426.7,2426.6,3.2078]
[1726364472253,4.86235,2426.7,2426.3,0.32959]
[1726364472453,1.48,2426.4,2426.3,0.32959]
[1726364473845,1.48,2426.4,2426.2,5.42648352]
[1726364474053,1.8918,2426.3,2426.2,5.42648352]
[1726364474239,1.8918,2426.3,2426.2,4.35061]
[1726364474647,2.2214,2426.3,2426.2,3.2078]
[1726364474843,1.8918,2426.3,2425.9,5.40511352]
[1726364475154,0.32964,2426.0,2425.9,4.28367352]
[1726364475453,1.48,2426.1,2425.9,3.2078]
[1726364475642,0.4118,2426.0,2425.9,3.2078]
[1726364478849,0.4118,2426.0,2425.6,1.12149]
[1726364479156,0.4118,2426.0,2425.9,3.2078]
[1726364480155,1.8918,2426.0,2425.9,3.2078]
[1726364480856,1.8918,2426.0,2425.6,3.9996]
[1726364481565,1.8918,2426.0,2425.7,0.32968]
[1726364483456,1.48,2425.8,2425.7,0.32968]
[1726364485955,0.3823,2426.2,2425.6,3.9996]
[1726364486261,1.48,2426.1,2426.0,0.32964]
[1726364491362,0.3823,2426.2,2426.1,0.32963]
[1726364491563,0.3825,2426.4,2426.0,3.2078]
[1726364491866,1.8625,2426.4,2426.3,0.3296]
[1726364494460,1.8625,2426.4,2426.2,0.32961]
[1726364500268,1.8625,2426.4,2426.2,3.53741]
[1726364501571,1.8625,2426.4,2426.3,0.3296]
[1726364501962,1.8625,2426.4,2426.2,3.53741]
[1726364502161,1.8625,2426.4,2426.2,0.32961]
[1726364502361,1.8625,2426.4,2426.2,3.53741]
[1726364508072,1.8625,2426.4,2426.2,0.32961]
[1726364508267,1.8625,2426.4,2426.2,3.53741]
[1726364514177,1.8625,2426.4,2426.2,3.2078]
[1726364514379,1.8625,2426.4,2426.2,3.53741]
[1726364515270,1.8625,2426.4,2426.2,3.2078]
[1726364515479,1.8625,2426.4,2426.2,3.53741]
[1726364517881,0.3818,2426.6,2426.2,3.2078]
[1726364518072,1.8839,2426.4,2426.2,3.91491]
[1726364520873,1.8839,2426.4,2426.2,3.53741]
[1726364521983,1.8839,2426.4,2426.2,3.93461]
[1726364526090,1.8839,2426.4,2426.2,3.53741]
[1726364526291,0.4029,2426.3,2426.2,3.53741]
[1726364527976,1.8839,2426.4,2426.2,0.32961]
[1726364528294,1.8839,2426.4,2426.2,3.53741]
[1726364529386,0.4039,2426.4,2426.3,0.3296]
[1726364529591,0.3894,2426.5,2426.3,0.8048]
[1726364529791,0.7694,2426.5,2426.3,0.8048]
[1726364532182,0.7694,2426.5,2426.3,1.1344]
[1726364532591,1.48,2426.4,2426.2,4.28367352]
[1726364532788,1.8825,2426.4,2426.2,4.28367352]
[1726364535987,1.8825,2426.4,2426.2,1.07587352]
[1726364536688,1.8825,2426.4,2426.2,4.28367352]
[1726364537194,2.21209,2426.4,2426.2,1.07587352]
[1726364538391,1.8825,2426.4,2426.2,1.07587352]
[1726364539597,2.21209,2426.4,2426.2,1.07587352]
[1726364541895,1.8825,2426.4,2426.2,1.07587352]
[1726364542096,2.21209,2426.4,2426.2,1.07587352]
[1726364543003,0.73209,2426.4,2426.2,1.07587352]
[1726364543198,1.48,2426.3,2426.2,1.07587352]
[1726364543500,1.48,2426.3,2426.2,1.67394727]
[1726364544097,1.48,2426.3,2426.2,1.07587352]
[1726364544399,1.48,2426.3,2426.2,1.67395181]
[1726364544601,1.48,2426.3,2426.2,1.07587352]
[1726364545401,1.48,2426.3,2426.1,1.07587352]
[1726364545600,0.4009,2426.2,2426.1,1.07587352]
[1726364545798,0.4009,2426.2,2426.1,3.14744023]
[1726364545999,0.4009,2426.2,2426.1,2.54936479]
[1726364546200,0.4009,2426.2,2426.1,2.07157293]
[1726364546499,0.4009,2426.2,2426.1,3.14839022]
[1726364547191,0.4009,2426.2,2426.1,2.55030856]
[1726364547401,0.4009,2426.2,2426.1,3.1483864]
[1726364548900,0.4009,2426.2,2426.1,3.4779356]
[1726364553903,1.48,2426.4,2426.1,3.1481783]
[1726364554105,1.48,2426.4,2426.2,0.70711]
[1726364554399,1.48,2426.4,2426.3,0.39]
[1726364554602,1.48,2426.4,2426.3,0.7839]
[1726364560802,1.48,2426.4,2426.2,0.32961]
[1726364566801,1.48,2426.4,2426.1,1.07681729]
[1726364566802,1.48,2426.4,2426.1,1.40643729]
[1726364567006,1.48,2426.4,2426.2,0.59816235]
[1726364567310,1.48,2426.4,2426.2,0.32961]
[1726364568014,1.48,2426.4,2426.1,1.40643729]
[1726364568211,1.48,2426.4,2426.2,0.59817343]
[1726364568409,1.48,2426.4,2426.2,0.3936]
[1726364568816,1.48,2426.4,2426.1,1.40643729]
[1726364569015,1.48,2426.4,2426.2,0.59816816]
[1726364569211,1.48,2426.4,2426.1,1.40643729]
[1726364569515,1.48,2426.4,2426.2,0.59816841]
[1726364569715,1.48,2426.4,2426.1,1.40643729]
[1726364569912,1.48,2426.4,2426.2,0.59816755]
[1726364570114,1.48,2426.4,2426.1,1.40643729]
[1726364570311,1.48,2426.2,2426.1,1.07681729]
[1726364570517,1.48,2426.2,2426.1,1.67503395]
[1726364570711,1.48,2426.2,2426.1,0.92784666]
[1726364570911,1.48,2426.2,2426.1,2.00466395]
[1726364571116,1.48,2426.2,2426.1,2.00466321]
[1726364572315,1.48,2426.2,2426.1,2.00465959]
[1726364572621,1.48,2426.2,2426.1,0.9278423]
[1726364573322,1.48,2426.2,2426.1,2.00465959]
[1726364574519,1.48,2426.2,2426.1,0.9278423]
[1726364575837,1.48,2426.2,2426.1,0.5982194]
[1726364576116,1.48,2426.2,2426.0,4.61424729]
[1726364576417,1.48,2426.2,2426.1,1.67503631]
[1726364576618,1.48,2426.2,2425.9,1.61381028]
[1726364576619,5.6016,2426.2,2425.9,1.07681729]
[1726364576814,1.48,2426.0,2425.7,4.28461729]
[1726364577018,1.48,2425.8,2425.7,4.28461729]
[1726364577323,1.48,2425.8,2425.7,0.32968]
[1726364580710,1.48,2425.8,2425.7,0.71158]
[1726364587321,1.48,2425.8,2425.7,0.3819]
[1726364587923,1.48,2425.8,2425.7,0.32968]
[1726364590718,1.48,2425.8,2425.6,3.53749]
[1726364593023,1.48,2425.8,2425.6,0.32969]
[1726364593222,1.48,2425.8,2425.6,3.53749]
[1726364594123,1.8691,2425.8,2425.6,3.53749]
[1726364596529,2.2412,2425.8,2425.6,3.53749]
[1726364598234,2.57088,2425.8,2425.6,3.2078]
[1726364603836,2.2412,2425.8,2425.6,3.2078]
[1726364605129,2.57087,2425.8,2425.6,3.2078]
[1726364606029,2.2412,2425.8,2425.6,3.2078]
[1726364606627,2.2412,2425.8,2425.5,0.731]
[1726364606833,1.48,2425.6,2425.5,0.731]
[1726364607032,1.48,2425.6,2425.5,3.9388]
[1726364607328,1.48,2425.6,2425.5,0.731]
[1726364607532,1.48,2425.6,2425.5,3.9388]
[1726364614337,1.48,2425.7,2425.6,0.32969]
[1726364614538,1.48,2425.7,2425.6,0.72209]
[1726364615437,1.48,2425.7,2425.6,0.3924]
[1726364616536,1.48,2425.7,2425.6,0.72209]
[1726364616736,1.8843,2425.7,2425.6,0.72209]
[1726364620554,6.0067,2425.7,2425.5,3.9388]
[1726364620743,6.0067,2425.7,2425.5,4.3224]
[1726364620744,1.8843,2425.7,2425.5,4.3224]
[1726364621046,1.48,2425.7,2425.6,0.32969]
[1726364621243,1.8804,2425.7,2425.6,0.32969]
[1726364623648,1.8804,2425.7,2425.5,1.86171729]
[1726364623649,1.8804,2425.7,2425.5,2.19141729]
[1726364623841,1.8804,2425.7,2425.5,1.86171729]
[1726364624145,1.48,2425.6,2425.5,0.7849]
[1726364624340,1.48,2425.6,2425.4,1.78363729]
[1726364625741,1.48,2425.6,2425.4,1.45391729]
[1726364625941,1.8097,2425.6,2425.4,0.3771]
[1726364626135,1.8097,2425.6,2425.3,1.07681729]
[1726364626340,1.48,2425.4,2425.3,1.40655729]
[1726364626943,1.48,2425.4,2425.3,2.40458628]
[1726364627140,1.48,2425.4,2425.3,2.57655729]
[1726364627340,1.48,2425.4,2425.3,3.1752803]
[1726364627657,1.48,2425.4,2425.3,2.57655729]
[1726364627845,1.48,2425.4,2425.3,3.17526566]
[1726364628453,1.48,2425.4,2425.3,3.17527039]
[1726364628756,1.48,2425.5,2425.4,0.32972]
[1726364632754,1.48,2425.5,2425.4,1.40653729]
[1726364634551,1.48,2425.5,2425.4,0.32972]
[1726364635148,1.48,2425.5,2425.3,5.45461729]
[1726364635344,0.4004,2425.7,2425.4,0.32972]
[1726364635545,1.48,2425.5,2425.4,0.32972]
[1726364640342,1.8721,2425.6,2425.5,0.32971]
[1726364648757,0.3921,2425.6,2425.5,0.32971]
[1726364649065,0.4004,2425.7,2425.6,0.32969]
[1726364649255,0.4004,2425.7,2425.6,0.70839]
[1726364649461,0.4004,2425.7,2425.6,1.09479]
[1726364650964,0.4004,2425.7,2425.5,1.07681729]
[1726364650965,0.4004,2425.7,2425.5,1.40651729]
[1726364651265,1.48,2425.6,2425.5,0.3297]
[1726364662975,1.48,2425.6,2425.5,2.00505304]
[1726364663770,0.759,2425.8,2425.7,0.32968]
[1726364663978,2.6362,2425.8,2425.7,0.32968]
[1726364665269,2.6362,2425.8,2425.6,4.61430729]
[1726364665470,1.48,2425.7,2425.6,3.53749]
[1726364665674,1.48,2425.7,2425.5,1.40652729]
[1726364665874,1.48,2425.7,2425.5,1.07681729]
[1726364666170,1.48,2425.7,2425.4,1.40652729]
[1726364666572,1.48,2425.7,2425.5,0.32971]
[1726364670581,1.48,2425.7,2425.4,4.61432729]
[1726364671384,1.48,2425.7,2425.5,0.3297]
[1726364683588,1.80969,2425.7,2425.4,4.28461729]
[1726364683883,1.80969,2425.7,2425.4,4.61433729]
[1726364684088,1.48,2425.7,2425.4,4.61433729]
[1726364684685,1.80968,2425.7,2425.4,4.61433729]
[1726364686089,1.48,2425.7,2425.4,4.61433729]
[1726364692992,1.48,2425.7,2425.4,5.01233729]
[1726364693584,1.48,2425.7,2425.4,4.68261729]
[1726364693786,1.48,2425.7,2425.5,1.83791729]
[1726364693983,1.48,2425.7,2425.5,0.7611]
[1726364694393,1.48,2425.7,2425.5,1.83791729]
[1726364694591,1.48,2425.7,2425.5,0.7611]
[1726364694992,1.48,2425.7,2425.5,1.83791729]
[1726364695394,1.48,2425.7,2425.5,1.09081]
[1726364695688,1.1562,2425.8,2425.6,1.67532278]
[1726364695689,0.384,2425.8,2425.6,1.67532278]
[1726364695893,1.80967,2425.9,2425.7,0.392]
[1726364696084,1.80967,2425.9,2425.8,0.3779]
[1726364696286,1.80967,2425.9,2425.8,0.7611]
[1726364696504,2.19557,2425.9,2425.8,0.7611]
[1726364698696,1.8659,2425.9,2425.8,0.7611]
[1726364699994,2.19555,2425.9,2425.8,0.7611]
[1726364700396,1.8659,2425.9,2425.8,0.7611]
[1726364700795,1.8659,2425.9,2425.7,0.392]
[1726364700796,4.2389,2425.8,2425.7,0.392]
[1726364702587,4.2389,2425.8,2425.5,1.40651729]
[1726364702588,4.6161,2425.8,2425.5,1.40651729]
[1726364702801,1.48,2425.7,2425.6,0.32969]
[1726364703789,6.0961,2425.8,2425.7,0.32968]
[1726364703998,6.0961,2425.8,2425.7,0.8037]
[1726364703999,5.7189,2425.8,2425.7,0.8037]
[1726364704197,5.7189,2425.8,2425.6,1.40649729]
[1726364704500,4.2389,2425.8,2425.7,0.32968]
[1726364705601,4.2389,2425.8,2425.6,3.2078]
[1726364705800,1.48,2425.7,2425.6,3.53749]
[1726364706595,1.48,2425.7,2425.6,0.32969]
[1726364706792,1.48,2425.7,2425.6,3.53749]
[1726364707505,1.48,2425.7,2425.6,0.32969]
[1726364707706,1.48,2425.7,2425.6,3.53749]
[1726364708094,1.48,2425.7,2425.6,0.32969]
[1726364708403,1.48,2425.7,2425.6,3.53749]
[1726364709094,1.48,2425.7,2425.6,0.32969]
[1726364709298,1.48,2425.7,2425.6,3.53749]
[1726364709705,1.48,2425.7,2425.6,4.61430729]
[1726364709894,1.48,2425.7,2425.6,3.53749]
[1726364710095,4.2389,2425.8,2425.7,0.32968]
[1726364710301,4.2389,2425.8,2425.7,8.98436942]
[1726364710608,4.2389,2425.8,2425.7,9.60028597]
[1726364711305,4.2389,2425.8,2425.7,9.76307059]
[1726364712207,4.2389,2425.8,2425.7,9.16433205]
[1726364712406,4.2389,2425.8,2425.7,9.76296646]
[1726364712596,4.2389,2425.8,2425.7,9.30383735]
[1726364712802,5.7189,2425.8,2425.7,4.07795735]
[1726364713113,5.7189,2425.8,2425.6,4.61425147]
[1726364713407,2.65,2425.7,2425.6,4.61425147]
[1726364714707,2.65,2425.7,2425.6,3.53749]
[1726364715097,2.65,2425.7,2425.6,3.2078]
[1726364715300,2.65,2425.7,2425.5,0.37536147]
[1726364717713,2.65,2425.7,2425.6,0.32969]
[1726364717911,2.2632,2425.7,2425.6,0.32969]
[1726364719606,3.5968,2425.9,2425.6,0.32969]
[1726364719607,3.2078,2425.9,2425.7,0.32967]
[1726364719805,1.48,2425.8,2425.7,0.32967]
[1726364734119,0.3978,2425.9,2425.8,0.32967]
[1726364735415,1.8778,2425.9,2425.8,0.32967]
[1726364738825,2.20746,2425.9,2425.5,1.94551145]
[1726364739015,1.48,2425.7,2425.5,0.3297]
[1726364739529,0.3958,2425.6,2425.4,1.94553145]
[1726364739720,0.7754,2425.5,2425.4,1.94553145]
[1726364739922,0.7754,2425.5,2425.4,4.9754159]
[1726364740221,2.2554,2425.5,2425.3,0.32973]
[1726364745833,2.2554,2425.5,2425.2,3.63354]
[1726364745834,1.48,2425.4,2425.2,3.63354]
[1726364746038,1.48,2425.4,2425.1,1.71181145]
[1726364746039,1.48,2425.4,2425.1,1.61581145]
[1726364746228,0.3829,2425.3,2425.2,0.59927498]
[1726364746432,0.3829,2425.3,2425.1,1.61581145]
[1726364746732,0.3829,2425.3,2425.0,2.43681145]
[1726364746937,0.3829,2425.3,2425.1,2.07201501]
[1726364747129,0.3829,2425.3,2425.2,0.32974]
[1726364748241,0.3829,2425.3,2425.1,0.32976]
[1726364748541,2.2586,2425.2,2425.1,0.32976]
[1726364749238,2.2586,2425.2,2425.0,0.32977]
[1726364749427,2.2586,2425.2,2425.0,0.32978]
[1726364749943,2.2586,2425.2,2425.1,0.32976]
[1726364750238,2.2586,2425.2,2425.0,0.32977]
[1726364751146,1.48,2425.1,2425.0,0.32978]
[1726364757540,1.48,2425.1,2424.9,3.53758]
[1726364757741,0.405,2425.0,2424.9,3.2078]
[1726364758351,0.405,2425.0,2424.9,3.53759]
[1726364761247,0.405,2425.0,2424.9,3.2078]
[1726364761950,0.405,2425.0,2424.9,3.53759]
[1726364765156,2.2586,2425.2,2425.0,0.32977]
[1726364765450,0.3757,2425.2,2425.1,0.32976]
[1726364767555,0.3757,2425.2,2425.0,0.32977]
[1726364767848,1.48,2425.1,2424.9,3.53758]
[1726364769062,0.3836,2425.0,2424.9,3.53758]
[1726364770153,1.8636,2425.0,2424.9,3.2078]
[1726364771549,5.9876,2425.0,2424.9,3.2078]
[1726364772147,6.31738,2425.0,2424.9,3.2078]
[1726364772346,5.9876,2425.0,2424.9,3.2078]
[1726364772660,6.31738,2425.0,2424.9,3.2078]
[1726364776657,12.31738,2425.0,2424.9,3.2078]
[1726364776864,0.3298,2424.9,2424.7,0.096]
[1726364777065,2.2448,2424.8,2424.5,3.53764]
[1726364777261,1.48,2424.6,2424.5,3.53764]
[1726364778462,1.48,2424.6,2424.5,3.2078]
[1726364783469,1.48,2424.6,2424.4,0.32986]
[1726364785164,1.48,2424.6,2424.3,4.32976]
[1726364785363,1.48,2424.4,2424.3,4.32977]
[1726364790475,1.48,2424.4,2424.3,1.12197]
[1726364791473,3.5896,2424.7,2424.3,0.7921]
[1726364791673,5.0696,2424.7,2424.5,0.32984]
[1726364791872,1.48,2424.7,2424.5,0.32984]
[1726364792180,5.1006,2424.7,2424.5,0.32984]
[1726364792381,5.1006,2424.7,2424.4,0.32985]
[1726364792869,5.1006,2424.7,2424.5,0.375]
[1726364793770,5.1006,2424.7,2424.5,0.70483]
[1726364794172,5.1006,2424.7,2424.5,0.375]
[1726364794574,1.8928,2424.7,2424.5,0.375]
[1726364794777,5.1006,2424.7,2424.5,0.70484]
[1726364796576,1.8928,2424.7,2424.5,0.70484]
[1726364799383,1.8928,2424.7,2424.6,0.32983]
[1726364799578,0.3809,2424.8,2424.7,0.32982]
[1726364799768,1.8609,2424.8,2424.7,0.32982]
[1726364799973,1.8609,2424.8,2424.6,1.10882]
[1726364800980,1.8609,2424.8,2424.7,0.32982]
[1726364801284,1.8609,2424.8,2424.6,1.10882]
[1726364802180,0.3822,2424.7,2424.6,1.10882]
[1726364806378,6.31602,2424.7,2424.2,1.61581145]
[1726364806583,1.48,2424.3,2424.2,0.32988]
[1726364806788,1.48,2424.3,2424.2,0.32989]
[1726364812779,4.6878,2424.3,2424.2,0.32989]
[1726364812983,4.6878,2424.3,2424.1,0.32989]
[1726364813184,4.6878,2424.3,2424.2,0.32989]
[1726364816489,4.6878,2424.3,2424.1,0.32989]
[1726364817390,4.6878,2424.3,2424.2,0.32989]
[1726364817593,4.6878,2424.3,2424.0,1.61581145]
[1726364817790,4.6878,2424.3,2424.1,0.3299]
[1726364818687,4.6878,2424.3,2424.2,0.32989]
[1726364819495,1.48,2424.3,2424.2,0.32989]
[1726364819993,1.48,2424.3,2424.1,0.32989]
[1726364821090,4.6878,2424.3,2424.1,0.32989]
[1726364821991,5.01768,2424.3,2423.9,1.94572145]
[1726364822290,1.48,2424.0,2423.9,1.94572145]
[1726364822489,4.6878,2424.0,2423.8,1.61581145]
[1726364822793,4.6878,2424.0,2423.8,0.32993]
[1726364822794,2.6429,2423.9,2423.8,0.32993]
[1726364822995,2.6429,2423.9,2423.8,0.93084815]
[1726364823201,2.6429,2423.9,2423.8,0.32993]
[1726364823504,2.6429,2423.9,2423.7,1.94576145]
[1726364824089,2.6429,2423.9,2423.8,0.32994]
[1726364825889,1.1629,2423.9,2423.8,0.32994]
[1726364831902,1.1629,2423.9,2423.6,1.99581145]
[1726364833494,1.1629,2423.9,2423.8,0.32994]
[1726364836607,1.1629,2423.9,2423.6,1.45903826]
[1726364837700,1.1629,2423.9,2423.7,1.07903826]
[1726364838399,1.1629,2423.9,2423.8,0.32994]
[1726364850405,1.1629,2423.9,2423.8,1.40897826]
[1726364851016,1.1629,2423.9,2423.8,1.07903826]
[1726364851517,1.1629,2423.9,2423.8,1.67994699]
[1726364852402,1.1629,2423.9,2423.8,3.48500955]
[1726364853218,0.3838,2423.9,2423.8,4.482584]
[1726364854710,0.3838,2423.9,2423.8,4.02178274]
[1726364854909,0.3838,2423.9,2423.8,4.48257441]
[1726364856014,1.48,2424.1,2423.9,0.32991]
[1726364856314,1.8536,2424.1,2423.9,1.41062418]
[1726364860303,1.8536,2424.1,2424.0,1.41062418]
[1726364860509,1.8536,2424.1,2424.0,1.6814264]
[1726364861508,1.8536,2424.1,2424.0,2.0113364]
[1726364861812,1.8536,2424.1,2424.0,2.0113253]
[1726364864619,1.8536,2424.1,2424.0,3.48724256]
[1726364864917,1.8536,2424.1,2424.0,2.0113253]
[1726364865308,1.8536,2424.1,2424.0,1.41062418]
[1726364865510,1.8536,2424.1,2424.0,3.48747387]
[1726364867722,1.8536,2424.1,2424.0,2.86733462]
[1726364867913,1.8536,2424.1,2424.0,3.48822153]
[1726364868219,1.8536,2424.1,2424.0,4.48312999]
[1726364868719,1.8536,2424.1,2424.0,2.86731854]
[1726364868921,1.8536,2424.1,2424.0,4.48312999]
[1726364869221,1.8536,2424.1,2424.0,2.86731854]
[1726364869520,5.0614,2424.1,2424.0,3.42189898]
[1726364869825,5.0614,2424.1,2424.0,4.02244427]
[1726364870015,5.0614,2424.1,2424.0,4.48301193]
[1726364870513,5.0614,2424.1,2424.0,2.86717182]
[1726364870712,5.0614,2424.1,2424.0,4.48298327]
[1726364870912,5.0614,2424.1,2424.0,3.94871082]
[1726364871117,5.0614,2424.1,2424.0,3.48815011]
[1726364871718,5.0614,2424.1,2424.0,3.94870101]
[1726364872014,5.0614,2424.1,2424.0,3.48815545]
[1726364872217,1.8536,2424.1,2424.0,2.40660416]
[1726364872410,1.8536,2424.1,2424.0,2.53725224]
[1726364872611,1.8536,2424.1,2424.0,3.69250561]
[1726364872815,1.8536,2424.1,2424.0,4.15305974]
[1726364873122,1.8536,2424.1,2424.0,2.53724829]
[1726364873515,1.8536,2424.1,2424.0,4.15305974]
[1726364873716,1.8536,2424.1,2424.0,2.53724829]
[1726364874225,1.8536,2424.1,2424.0,2.40660416]
[1726364874527,1.8536,2424.1,2424.0,3.15823296]
[1726364874728,5.0614,2424.1,2424.0,3.61879787]
[1726364875122,5.0614,2424.1,2424.0,3.15823296]
[1726364875525,5.0614,2424.1,2424.0,1.68208409]
[1726364875725,5.0614,2424.1,2424.0,3.61883267]
[1726364875922,5.0614,2424.1,2424.0,3.15827065]
[1726364877330,1.8536,2424.1,2424.0,3.15827065]
[1726364877523,5.0614,2424.1,2424.0,3.15827065]
[1726364878128,1.8536,2424.1,2424.0,3.15827065]
[1726364878331,5.0614,2424.1,2424.0,3.15827065]
[1726364879323,1.8536,2424.1,2424.0,3.15827065]
[1726364879533,5.0614,2424.1,2424.0,3.15827065]
[1726364879935,5.0614,2424.1,2424.0,3.15826866]
[1726364880631,1.8536,2424.1,2424.0,3.15827908]
[1726364880827,5.0614,2424.1,2424.0,3.15827908]
[1726364883037,5.0614,2424.1,2424.0,3.61884058]
[1726364883227,5.0614,2424.1,2424.0,2.53730178]
[1726364883426,5.0614,2424.1,2424.0,3.61886547]
[1726364883735,5.0614,2424.1,2424.0,2.53732361]
[1726364884037,5.0614,2424.1,2424.0,3.61895946]
[1726364884239,5.0614,2424.1,2424.0,2.53736646]
[1726364884737,5.0614,2424.1,2424.0,3.6189745]
[1726364884937,5.0614,2424.1,2424.0,1.93682316]
[1726364885233,5.0614,2424.1,2424.0,2.07680584]
[1726364885433,5.0614,2424.1,2424.0,2.53739079]
[1726364885638,5.0614,2424.1,2424.0,3.15840522]
[1726364886135,5.0614,2424.1,2424.0,2.53737789]
[1726364886337,5.0614,2424.1,2424.0,2.53737542]
[1726364886522,5.0614,2424.1,2424.0,3.61896883]
[1726364886720,5.0614,2424.1,2424.0,2.53737542]
[1726364887032,5.0614,2424.1,2424.0,3.61896915]
[1726364887230,5.0614,2424.1,2424.0,3.1583971]
[1726364887430,5.0614,2424.1,2424.0,3.61896927]
[1726364887634,5.0614,2424.1,2424.0,2.53737554]
[1726364887828,5.0614,2424.1,2424.0,3.15841232]
[1726364888536,1.8536,2424.1,2424.0,3.15841232]
[1726364888732,5.0614,2424.1,2424.0,3.15841232]
[1726364889141,5.0614,2424.1,2424.0,3.15845494]
[1726364889336,5.0614,2424.1,2424.0,3.15844826]
[1726364890134,1.8536,2424.1,2424.0,2.55788893]
[1726364890324,5.0614,2424.1,2424.0,3.1584512]
[1726364892428,5.0614,2424.1,2424.0,2.55788893]
[1726364892638,5.0614,2424.1,2424.0,3.15847169]
[1726364893034,1.8536,2424.1,2424.0,3.15847169]
[1726364893234,5.0614,2424.1,2424.0,3.15847169]
[1726364893438,5.0614,2424.1,2424.0,3.54997169]
[1726364894034,5.0614,2424.1,2424.0,3.55002321]
[1726364894339,5.0614,2424.1,2424.0,3.15852321]
[1726364894539,1.8536,2424.1,2424.0,3.15852321]
[1726364894737,1.8536,2424.1,2424.0,2.55794045]
[1726364895038,5.0614,2424.1,2424.0,3.15851868]
[1726364895938,5.0614,2424.1,2424.0,3.1587999]
[1726364898138,3.2078,2424.1,2424.0,3.4887099]
[1726364898336,3.2078,2424.1,2424.0,4.86239783]
[1726364898732,3.2078,2424.1,2424.0,5.82365623]
[1726364898932,3.2078,2424.1,2424.0,4.43210135]
[1726364899132,3.2078,2424.1,2424.0,3.55655472]
[1726364899329,3.2078,2424.1,2424.0,5.49431892]
[1726364899530,3.2078,2424.1,2424.0,4.07234817]
[1726364899739,3.2078,2424.1,2424.0,4.8630318]
[1726364900437,3.2078,2424.1,2424.0,4.40221987]
[1726364900737,3.2078,2424.1,2424.0,4.86296881]
[1726364901643,3.2078,2424.1,2424.0,4.53305881]
[1726364901950,3.2078,2424.1,2424.0,4.86296881]
[1726364902945,0.7739,2424.2,2424.1,0.3299]
[1726364903144,0.7739,2424.2,2424.1,3.15989669]
[1726364904149,0.7739,2424.2,2424.1,3.15965216]
[1726364904655,2.2539,2424.2,2424.1,3.15965216]
[1726364905541,2.2539,2424.2,2424.1,1.68287824]
[1726364906242,2.2539,2424.2,2424.1,3.1594335]
[1726364906547,2.2539,2424.2,2424.1,3.15938098]
[1726364906749,2.2539,2424.2,2424.1,2.07177824]
[1726364906946,2.2539,2424.2,2424.1,3.54829871]
[1726364907349,2.2539,2424.2,2424.1,2.07177824]
[1726364907847,2.2539,2424.2,2424.1,3.54827807]
[1726364908042,2.2539,2424.2,2424.1,2.07177824]
[1726364908951,5.4617,2424.2,2424.1,1.47099827]
[1726364909249,3.5872,2424.2,2424.1,2.40153594]
[1726364909468,3.2078,2424.2,2424.1,2.19516323]
[1726364909756,3.2078,2424.2,2424.1,4.41158496]
[1726364910050,3.2078,2424.2,2424.1,4.87220434]
[1726364910941,1.8809,2424.4,2424.1,4.87220434]
[1726364911154,1.8809,2424.4,2424.2,1.68203253]
[1726364911155,5.4908,2424.4,2424.2,1.68203253]
[1726364911340,0.4055,2424.3,2424.2,1.08142225]
[1726364911545,0.4055,2424.3,2424.1,1.41132225]
[1726364912846,3.6133,2424.3,2424.1,1.41132225]